Cogmind - Beta 13 @@@ ROGUE MODE // 2024.04.19 @ 19:19:34 Player: Modulottie Result: Destroyed by G-50 Soldier with Heavy Laser Performance ------------- Evolutions (3) 1500 Regions Visited (7) 1400 Robots Destroyed (24) 120 Value Destroyed (694) 694 Prototype IDs (24) 480 Alien Tech Used (0) 0 Bonus (300) 300 TOTAL SCORE: 4494 Bonus ------- Aligned with FarCom 300 Cogmind --------- Core Integrity 0/700 Matter 214/300 Energy 100/100 System Corruption 5% Temperature Cool (36) Movement Core (50) Location -7/Lower Caves Parts ------- > --- POWER (2) -------- (None) > --- PROPULSION (4) --- (None) > --- UTILITY (5) ------ (None) > --- WEAPON (2) ------- (None) > --- INVENTORY (5) ---- Light Nuclear Core Improved Targeting Computer Reaction Control System Improved Light Armor Plating Pulse Rifle Peak State ------------ > --- POWER ------------ Light Nuclear Core > --- PROPULSION ------- Flight Unit Flight Unit Flight Unit Flight Unit > --- UTILITY ---------- Lightpack 2.0 Reaction Control System > --- WEAPON ----------- Assault Rifle Axe > --- INVENTORY -------- Light Nuclear Core Light Nuclear Core Reinforced Deuterium Engine Fission Core Wheel Flight Unit Improved Targeting Computer Advanced Targeting Computer Pulse Rifle Assault Rifle Light Assault Rifle Light Assault Rifle Axe [Rating: 47] Favorites ----------- Power Light Ion Engine Engine Light Ion Engine Power Core Light Nuclear Core Propulsion Light Treads Treads Light Treads Leg Aluminum Leg Wheel Armored Wheel Flight Unit Flight Unit Utility Huge Storage Unit Device Reaction Control System Storage Huge Storage Unit Protection Light Armor Plating Weapon Light Assault Rifle Ballistic Gun Light Assault Rifle Slashing Weapon Axe Build | -11 -10 -10 -10 -9 -8 -7 -7 ------- Run | Yrd Mat Min Exi Min Mat Fac Low Slots Evolved 6 | . . . . . 4 2 . Power 1 | . . . . . . 1 . Propulsion 2 | . . . . . 2 . . Utility 3 | . . . . . 2 1 . Weapon . | . . . . . . . . Parts Attached 59 | 6 12 5 . 3 19 12 2 Power 8 | 1 2 1 . 1 . 3 . Engine 5 | 1 2 1 . 1 . . . Core 3 | . . . . . . 3 . Reactor . | . . . . . . . . Propulsion 23 | 2 5 2 . 1 9 4 . Treads 2 | . . 2 . . . . . Leg 7 | 2 3 . . . 2 . . Wheel 10 | . 2 . . 1 7 . . Hover . | . . . . . . . . Flight 4 | . . . . . . 4 . Utility 8 | 1 3 . . . 1 3 . Device 2 | . . . . . . 2 . Storage 5 | 1 3 . . . . 1 . Processor . | . . . . . . . . Hackware . | . . . . . . . . Protection 1 | . . . . . 1 . . Artifact . | . . . . . . . . Weapon 20 | 2 2 2 . 1 9 2 2 Energy Gun . | . . . . . . . . Energy Cannon . | . . . . . . . . Ballistic Gun 18 | 2 2 2 . 1 8 1 2 Ballistic Cannon . | . . . . . . . . Launcher . | . . . . . . . . Special Weapon . | . . . . . . . . Impact Weapon . | . . . . . . . . Slashing Weapon 2 | . . . . . 1 1 . Piercing Weapon . | . . . . . . . . Special Melee Weapon . | . . . . . . . . Unidentified Prototypes 1 | . . . . . 1 . . Parts Lost 20 | . . 5 . . 9 . 6 Power 1 | . . 1 . . . . . Propulsion 10 | . . 2 . . 4 . 4 Utility 2 | . . . . . 2 . . Weapon 7 | . . 2 . . 3 . 2 Highest Loss Streak 6 | . . 5 . . 6 . 2 To Critical Strikes . | . . . . . . . . Average Slot Usage (%) 87 | . 90 100 100 100 70 67 20 Engine 11 | . 14 14 14 14 9 . . Treads 14 | . . 15 28 16 2 . . Leg 2 | . 14 . . . 4 . . Wheel 7 | . 12 12 . 11 18 . . Flight 1 | . . . . . . 30 6 Storage 22 | . 20 28 28 28 15 7 5 Ballistic Gun 23 | . 27 28 28 28 17 7 3 Naked Turns 22 | . . . . . . . 22 Heaviest Build 93 | 10 92 88 88 88 93 16 16 Greatest Support 48 | 20 20 40 40 40 48 16 16 Greatest Overweight (x) 30 | 1 4 4 2 7 30 . 2 Average Overweight (x) 2 | . 1 3 2 6 3 . . Largest Inventory Capacity 40 | 8 25 25 25 25 25 40 40 Average Capacity 24 | 6 15 25 25 25 25 40 34 Most Carried 25 | 6 15 15 17 22 25 19 17 Average Carried 16 | 4 7 12 15 19 24 14 13 Final Capacity 40 | 8 25 25 25 25 25 40 5 Final Carried 24 | 6 15 11 17 22 24 15 5 Class Distribution -------------------- 90% | Mutant 4% | Hauler-Sprinter Dominant Class ---------------- Mutant | -10/Materials Mutant | -10/Mines Mutant | -10/Exiles Mutant | -9/Mines Mutant | -8/Materials Hauler-Sprinter | -7/Factory Hauler-Mutant | -7/Lower Caves Resources | -11 -10 -10 -10 -9 -8 -7 -7 ----------- Run | Yrd Mat Min Exi Min Mat Fac Low Matter Collected 1390 | 217 82 560 . 38 395 . 98 Remotely . | . . . . . . . . Salvage Created 885 | . 95 . . 26 723 . 41 Parts 59 | . 9 . . 5 43 . 2 Haulers Intercepted 1 | . . . . . 1 . . Recyclers Shooed 2 | . . . . . 2 . . Parts Field Recycled . | . . . . . . . . Retrieved Matter . | . . . . . . . . Parts Self-Destructed 7 | . . . . . . . 7 Prevented . | . . . . . . . . Kills | -11 -10 -10 -10 -9 -8 -7 -7 ------- Run | Yrd Mat Min Exi Min Mat Fac Low Combat Hostiles Destroyed 21 | . 4 . . 2 13 . 2 Guns 21 | . 4 . . 2 13 . 2 Classes Destroyed 8 | . 2 . . . 6 . . Worker 1 | . . . . . 1 . . Hauler 1 | . . . . . 1 . . Recycler 1 | . . . . . 1 . . Swarmer 10 | . 3 . . 2 3 . 2 Grunt 6 | . 1 . . . 5 . . Sentry 2 | . . . . . 2 . . Specialist 2 | . . . . . 2 . . Hunter 1 | . . . . . 1 . . Best Kill Streak 5 | . 3 . . 2 5 . 2 Combat Bots Only 5 | . 3 . . 2 5 . 2 Max Kills in Single Turn 1 | . 1 . . 1 1 . 1 Gunslinging . | . . . . . . . . Exploded . | . . . . . . . . Melee . | . . . . . . . . Uniques/NPCs Destroyed . | . . . . . . . . Combat | -11 -10 -10 -10 -9 -8 -7 -7 -------- Run | Yrd Mat Min Exi Min Mat Fac Low Hostile Shots Fired 301 | . 31 7 . 26 107 . 130 Missed 92 | . 7 . . 8 25 . 52 Damage Taken 3683 | . 264 312 . 143 1573 . 1391 Core 1187 | . 78 31 . 40 333 . 705 Absorbed by Shields . | . . . . . . . . Core Remaining (%) 59 | 100 . . . 40 39 . . Volleys Fired 99 | . 26 1 . 4 57 . 11 Largest 2 | . 2 2 . 2 2 . 2 Hottest 53 | . 40 40 . 40 53 . 40 Shots Fired 193 | . 52 2 . 8 114 . 17 Gun 193 | . 52 2 . 8 114 . 17 Cannon . | . . . . . . . . Launcher . | . . . . . . . . Special . | . . . . . . . . Kinetic 193 | . 52 2 . 8 114 . 17 Thermal . | . . . . . . . . Explosive . | . . . . . . . . Electromagnetic . | . . . . . . . . Robot Hit Streak 8 | . 7 3 . 4 8 . 7 Robot Miss Streak 4 | . 4 . . 3 3 . 2 Penetration Max 1 | . . . . . 1 . . Secondary Targets 4 | . . . . 1 2 . 1 Max Gunslinging Chain 1 | . . . . 1 1 . 1 Shots Hit Robots 120 | . 28 2 . 4 75 . 11 Core Hits 55 | . 9 1 . 3 37 . 5 Critical Kills 1 | . 1 . . . . . . Critical Parts Destroyed . | . . . . . . . . Critical Strikes 1 | . 1 . . . . . . Destroy 1 | . 1 . . . . . . Melee Attacks 2 | . . . . . 1 1 . Impact . | . . . . . . . . Slashing 2 | . . . . . 1 1 . Piercing . | . . . . . . . . Sneak Attacks . | . . . . . . . . Combat Hostiles . | . . . . . . . . Follow-up Attacks . | . . . . . . . . Damage Inflicted 1473 | . 223 13 . 34 1080 . 123 Guns 1438 | . 223 13 . 34 1045 . 123 Cannons . | . . . . . . . . Explosions . | . . . . . . . . Melee . | . . . . . . . . Ramming 35 | . . . . . 35 . . Kinetic 1438 | . 223 13 . 34 1045 . 123 Thermal . | . . . . . . . . Explosive . | . . . . . . . . Electromagnetic . | . . . . . . . . Impact . | . . . . . . . . Slashing . | . . . . . . . . Piercing . | . . . . . . . . Highest Corruption 5 | . . . . . . . 5 Average Corruption 5 | . . . . . . . 5 Corruption Purged . | . . . . . . . . Corruption Blocked . | . . . . . . . . Effects 1 | . . . . . . . 1 Matter Fused 1 | . . . . . . . 1 Overload Shots . | . . . . . . . . Overflow Damage 5 | . . . . . 5 . . Projectiles . | . . . . . . . . Explosions . | . . . . . . . . Melee 5 | . . . . . 5 . . Knockbacks 1 | . . . . . 1 . . Impact 1 | . . . . . 1 . . Kinetic . | . . . . . . . . Secondary . | . . . . . . . . Self-Inflicted Damage 17 | . . . . . 17 . . Shots . | . . . . . . . . Rammed 1 | . . . . . 1 . . Targets Rammed 1 | . . . . . 1 . . Kicked . | . . . . . . . . Crushed . | . . . . . . . . Highest Temperature 66 | . 25 . . . 66 . 28 Average Temperature 15 | . 12 . . . 17 . 14 Received Heat Transfer 1071 | . 108 . . . 432 . 531 Siege Activations . | . . . . . . . . Robots Corrupted . | . . . . . . . . Combat Hostiles . | . . . . . . . . Parts Fried . | . . . . . . . . Impact Corruptions 1 | . . . . . 1 . . Robots Melted . | . . . . . . . . Combat Hostiles . | . . . . . . . . Parts Melted . | . . . . . . . . Heat Transferred . | . . . . . . . . Parts Sabotaged . | . . . . . . . . Parts Stolen . | . . . . . . . . Parts Stripped . | . . . . . . . . Power Chain Reactions . | . . . . . . . . Alert | -11 -10 -10 -10 -9 -8 -7 -7 ------- Run | Yrd Mat Min Exi Min Mat Fac Low Peak Influence 196 | . 163 . . 40 196 61 . Initial 60 | . . . . . 15 60 . Average 66 | . 43 . . 8 131 60 . Maximum Alert Level . | . . . . . . . . Low Security (%) 100 | 100 100 100 . 100 100 100 . Level 1 . | . . . . . . . . Level 2 . | . . . . . . . . Level 3 . | . . . . . . . . Level 4 . | . . . . . . . . Level 5 . | . . . . . . . . High Security . | . . . . . . . . Max Security . | . . . . . . . . Squads Dispatched 7 | . 2 . . . 5 . . Investigation 3 | . 1 . . . 2 . . Extermination . | . . . . . . . . Reinforcement 4 | . 1 . . . 3 . . Assault . | . . . . . . . . Garrison . | . . . . . . . . Intercept . | . . . . . . . . Searches Triggered . | . . . . . . . . Construction Impeded . | . . . . . . . . Haulers Reinforced . | . . . . . . . . Active Scanning Responses . | . . . . . . . . Cargo Convoy Interrupts . | . . . . . . . . Stealth | -11 -10 -10 -10 -9 -8 -7 -7 --------- Run | Yrd Mat Min Exi Min Mat Fac Low Distress Signals 5 | . 2 . . . 2 1 . Communications Jammed . | . . . . . . . . Distress Signals . | . . . . . . . . Times Spotted 54 | . 9 2 . 4 19 1 19 Peak Tracking Total 11 | . 7 2 . 4 6 2 11 Tactical Retreats 5 | . 2 . . . 1 . 2 Traps | -11 -10 -10 -10 -9 -8 -7 -7 ------- Run | Yrd Mat Min Exi Min Mat Fac Low Traps Triggered 4 | . 2 . . . 1 1 . Indirectly . | . . . . . . . . Trap Hack Attempts . | . . . . . . . . Triggered . | . . . . . . . . Disarmed . | . . . . . . . . Reprogrammed . | . . . . . . . . Reused . | . . . . . . . . Traps Extracted . | . . . . . . . . Installed . | . . . . . . . . Triggered . | . . . . . . . . Machines | -11 -10 -10 -10 -9 -8 -7 -7 ---------- Run | Yrd Mat Min Exi Min Mat Fac Low Machines Disabled . | . . . . . . . . Max in Single Turn . | . . . . . . . . Machines Repaired . | . . . . . . . . Machines Dismantled . | . . . . . . . . Machines Sabotaged . | . . . . . . . . Overloaded Fab Kills . | . . . . . . . . Hacking | -11 -10 -10 -10 -9 -8 -7 -7 --------- Run | Yrd Mat Min Exi Min Mat Fac Low Machines Accessed 7 | . 3 . 1 . 3 . . Terminals 6 | . 3 . . . 3 . . Fabricators . | . . . . . . . . Repair Stations . | . . . . . . . . Recycling Units . | . . . . . . . . Scanalyzers . | . . . . . . . . Garrison Access . | . . . . . . . . Total Hacks 25 | . 12 . 1 . 12 . . Successful 11 | . 5 . 1 . 5 . . Failed 14 | . 7 . . . 7 . . Catastrophic 3 | . 2 . . . 1 . . Database Lockouts . | . . . . . . . . Manual 26 | . 12 . 1 . 12 1 . Terminals 24 | . 12 . . . 12 . . Fabricators . | . . . . . . . . Repair Stations . | . . . . . . . . Recycling Units . | . . . . . . . . Scanalyzers . | . . . . . . . . Garrison Access . | . . . . . . . . Terminal Hacks 5 | . 2 . 1 . 2 . . Part Schematic 1 | . 1 . . . . . . Branch Access Points 1 | . 1 . . . . . . Zone Layout 2 | . . . . . 2 . . Derelict Proto ID Bank 1 | . . . 1 . . . . Fabricator Hacks . | . . . . . . . . Repair Station Hacks . | . . . . . . . . Recycling Unit Hacks . | . . . . . . . . Scanalyzer . | . . . . . . . . Garrison Access Hacks . | . . . . . . . . Unauthorized Hacks 6 | . 3 . . . 3 . . Terminals 6 | . 3 . . . 3 . . Botnet 6 | . 3 . . . 3 . . Fabricators . | . . . . . . . . Repair Stations . | . . . . . . . . Recycling Units . | . . . . . . . . Scanalyzers . | . . . . . . . . Garrison Access . | . . . . . . . . Data Cores Recovered . | . . . . . . . . Used . | . . . . . . . . Hacking Detections 6 | . 3 . . . 3 . . Full Trace Events 2 | . 1 . . . 1 . . Feedback Events . | . . . . . . . . Feedback Blocked . | . . . . . . . . Robot Schematics Acquired . | . . . . . . . . Robots Built . | . . . . . . . . Authchips . | . . . . . . . . Time . | . . . . . . . . Total Robot Build Rating . | . . . . . . . . Part Schematics Acquired 1 | . 1 . . . . . . Parts Built . | . . . . . . . . Authchips . | . . . . . . . . Time . | . . . . . . . . Total Part Build Rating . | . . . . . . . . Parts Repaired . | . . . . . . . . Time . | . . . . . . . . Parts Recycled . | . . . . . . . . Recycled Matter . | . . . . . . . . Retrieved Matter . | . . . . . . . . Retrieved Components . | . . . . . . . . Parts Scanalyzed . | . . . . . . . . Part Schematics Acquired . | . . . . . . . . Parts Damaged . | . . . . . . . . Bothacking | -11 -10 -10 -10 -9 -8 -7 -7 ------------ Run | Yrd Mat Min Exi Min Mat Fac Low Used RIF Installer . | . . . . . . . . Robots Hacked . | . . . . . . . . Non-combat . | . . . . . . . . Combat . | . . . . . . . . Robot Hacks Applied . | . . . . . . . . Relay Couplers Released . | . . . . . . . . Fabnet Peak Effective % . | . . . . . . . . Robots Rewired . | . . . . . . . . Allies Hacked . | . . . . . . . . Hacks Repelled . | . . . . . . . . Allies | -11 -10 -10 -10 -9 -8 -7 -7 -------- Run | Yrd Mat Min Exi Min Mat Fac Low Total Allies . | . . . . . . . . Largest Group . | . . . . . . . . Highest-Rated Group . | . . . . . . . . Highest-Rated Ally . | . . . . . . . . Total Orders . | . . . . . . . . Ally Attacks . | . . . . . . . . Total Damage . | . . . . . . . . Kills . | . . . . . . . . Allies Corrupted . | . . . . . . . . Allies Melted . | . . . . . . . . Intel | -11 -10 -10 -10 -9 -8 -7 -7 ------- Run | Yrd Mat Min Exi Min Mat Fac Low Robot Analysis Total . | . . . . . . . . Derelict Logs Recovered . | . . . . . . . . Drone Launches . | . . . . . . . . Drone Recoveries . | . . . . . . . . Exploration | -11 -10 -10 -10 -9 -8 -7 -7 ------------- Run | Yrd Mat Min Exi Min Mat Fac Low Turns Passed 3454 | 59 403 198 1355 389 777 144 129 Spaces Moved 1803 | 41 208 79 423 173 359 382 138 Core 18 | 8 2 . . . 6 . 2 Treads 480 | . . 33 423 24 . . . Legs 150 | 33 117 . . . . . . Wheels 637 | . 89 46 . 149 353 . . Hover . | . . . . . . . . Flight 518 | . . . . . . 382 136 Fastest Speed 31 | 50 120 140 320 195 105 31 31 Average Speed 163 | 108 130 215 320 212 159 31 42 Slowest Speed 1550 | 120 200 320 320 320 1550 31 150 Overloaded Moves . | . . . . . . . . Propulsion Burnouts . | . . . . . . . . Robots Hopped . | . . . . . . . . Cave-ins Triggered . | . . . . . . . . Exploration Rate (%) 32 | 3 42 21 77 52 35 10 22 Regions Visited 7 Branch Regions 4 Pre-discovered Areas . | . . . . . . . . Known Exits Taken 1 | . 1 . . . . . . Unknown Exits Taken 6 | 1 . 1 1 1 1 1 . Scrap Searched 1 | . . . . 1 . . . Spaces Dug 2 | . . . . . 1 1 . Terrain Destroyed 3 | . . . . . 2 1 . Melee 2 | . . . . . 1 1 . Projectile 1 | . . . . . 1 . . AOE . | . . . . . . . . Terrain Rammed . | . . . . . . . . Walls Destroyed . | . . . . . . . . Machines Disabled . | . . . . . . . . Actions | -11 -10 -10 -10 -9 -8 -7 -7 --------- Run | Yrd Mat Min Exi Min Mat Fac Low Total 2143 | 52 295 107 426 188 475 405 195 Wait 120 | . 41 22 . 4 14 1 38 Move 1796 | 40 207 78 422 172 358 381 138 Hop . | . . . . . . . . Pick Up 37 | 6 7 1 4 4 11 4 . Fast Attach 22 | 6 5 . . . 8 3 . Attach 18 | . 1 5 . . 5 6 1 Detach 3 | . . . . . . 1 2 Swap 19 | . 6 . . 3 6 3 1 Drop 26 | . 2 . . 1 14 5 4 Fire 99 | . 26 1 . 4 57 . 11 Melee 2 | . . . . . 1 1 . Ram 1 | . . . . . 1 . . Kick . | . . . . . . . . Crush . | . . . . . . . . Escape Stasis . | . . . . . . . . Rewire . | . . . . . . . . Trap . | . . . . . . . . Miscellaneous . | . . . . . . . . Route ------- -11/Scrapyard -10/Materials -10/Mines (discovered 2 exits: [*Mat] / *Exi) -10/Exiles (discovered 2 exits: [*Min x2]) -9/Mines -8/Materials -7/Factory -7/Lower Caves History --------- Turn | Location | Event 18 | -11/Scrapyard | Discovered new exit (range 16) 60 | -11/Scrapyard | Entered Materials 317 | -10/Materials | Build established: Mutant 343 | -10/Materials | Identified exit to Mines 463 | -10/Materials | Entered Mines 465 | -10/Mines | Discovered new exit (range 8) 526 | -10/Mines | Assembled infested the area 531 | -10/Mines | Assisted by a Guerilla fighting off Assembled 583 | -10/Mines | Lost 5 parts (1p2n2w) 648 | -10/Mines | Deemed a non-threat by the Exiles lab entrance 648 | -10/Mines | Discovered new exit (range 5) 661 | -10/Mines | Entered Exiles 703 | -10/Exiles | Discovered new exit (range 15) 757 | -10/Exiles | Met 8R-AWN 808 | -10/Exiles | Met EX-HEX 914 | -10/Exiles | Met EX-BIN 959 | -10/Exiles | Aligned with FarCom system 962 | -10/Exiles | Given EX-Vault access code 1045 | -10/Exiles | Opened EX-Vault 1112 | -10/Exiles | Found Lightpack 2.0 1174 | -10/Exiles | Warned to stay clear of 0b10 Research branches 1267 | -10/Exiles | Met EX-DEC 1370 | -10/Exiles | Visited The Gauntlet 1661 | -10/Exiles | Discovered new exit (range 14) 2016 | -10/Exiles | Left Exiles lab with Lightpack 2.0 2016 | -10/Exiles | Entered Mines 2301 | -9/Mines | Discovered new exit (range 12) 2308 | -9/Mines | Core integrity fell below 50% 2405 | -9/Mines | Entered Materials 2405 | -8/Materials | Evolved 4 slots: Propulsion x2, Utility x2 2920 | -8/Materials | Discovered new exit (range 17) 3023 | -8/Materials | Lost 6 parts (4n1u1w) 3176 | -8/Materials | Core integrity fell below 50% 3182 | -8/Materials | Entered Factory 3182 | -7/Factory | Evolved 2 slots: Power x1, Utility x1 3213 | -7/Factory | Lost 3 parts (1u2w) 3311 | -7/Factory | Discovered new exit (range 5) 3326 | -7/Factory | Entered Lower Caves 3442 | -7/Lower Caves | Core integrity fell below 50% 3450 | -7/Lower Caves | Core integrity fell below 20% 3455 | -7/Lower Caves | Destroyed by G-50 Soldier with Heavy Laser Last Messages --------------- 03399_ S-27 Virus destroyed. 03399_ Switching to secondary target: S-27 Virus. 03404_ VTOL Module fries itself beyond repair. 03407_ S-27 Virus destroyed. 03417_ VTOL Module fries itself beyond repair. 03419_ Lgt. Assault Rifle destroyed. 03419_ System corrupted by crushing effect (+5). 03423_ Assault Rifle destroyed. 03431_ Critical hit (Burn: +37). 03433_ Dropped Lightpack 2.0. 03437_ B-48 Gladiator destroyed. 03440_ System corrupted: Matter fused (-8). 03447_ Critical hit (Burn: +37). 03449_ Lgt. Treads fries itself beyond repair. 03449_ Critical hit (Burn: +37). 03453_ Rnf. Deuterium Engine fries itself beyond repair. Map ----- +----------------------------------------------------+ | ! #?????????????????? | | ! = ##?????????????????? | | ##! #### ## #??????????????????? | | " " ## #??# ## #?#####????????????? | | """ "" #??# ## ### ##???????????? | | """" "" ## #### # #???????????? | | "" " #### ## #???????????? | | #??# ### ##???????????? | | #?## #?## ### #????????????? | | ####### ## ###??# ##?## #???????????? | | ##??# ### ##??### ###### #???????????? | | ##### #?# ##???# ## #???????????? | | ### "## #????#% ## #???????????? | | ## ## "" ##???#! ### #???????????? | | ### "" [ ##### ####?####???????????? | | ??## #""" #???????????????????? | | ???# #??# ##??????????????????? | | #??## ##### #?####?????????????? | | #??### #???## #? #?????????????? | | #???# ### #????## ## #?????????????? | | ###???# ##?# #????# # #?????????????? | | ?????# ##?? #????## #?????????????? | | #????# ##???# ##?????# #### ###?????????????? | | #????####????### ##????###g##?# #??????????????? | | #??????????????? #?????#//%;## #??????????????? | | #??????????????# #######@*=; g # #??????????????? | | ##??????????????# gg*!% g ###??????????????? | | ?????????????????########/;;;####????????????????? | | ???????????????????????? # ##???????????????????? | | ????????????????????????#####????????????????????? | | ?????????????????????????????????????????????????? | | ?????????????????????????????????????????????????? | | ?????????????????????????????????????????????????? | | ?????????????????????????????????????????????????? | | ?????????????????????????????????????????????????? | | ?????????????????????????????????????????????????? | | ?????????????????????????????????????????????????? | | ?????????????????????????????????????????????????? | | ?????????????????????????????????????????????????? | | ?????????????????????????????????????????????????? | | ?????????????????????????????????????????????????? | | ?????????????????????????????????????????????????? | | ?????????????????????????????????????????????????? | | ?????????????????????????????????????????????????? | | ?????????????????????????????????????????????????? | | ?????????????????????????????????????????????????? | | | | | | | | | +----------------------------------------------------+ Best States ------------- Heat Dissipation 34 Energy Generation 14 Energy Capacity 250 Matter Stores 450 Matter Capacity 450 Sight Range 16 Terrain Scan Density 10 Armor Coverage 150 Evasion (%) 71 Recoil Reduction 2 Item Schematics ----------------- Signal Interpreter | -10/Materials | Hacked Robot Schematics ------------------ None Fabricated ------------ Nothing Alien Tech Used ----------------- None Achievements -------------- None Challenges ------------ None Game ------ Seed SegregatorSurveybotRifle Manual? 0 Play Time 00:29:23 Cumulative 16.9 hours Start 2024.04.19 @ 18:49:26 End 2024.04.19 @ 19:19:34 Sessions 1 Manual Loads 0 Difficulty Rogue Special Mode None Game No. 18 Rogue 18 Adventurer 0 Explorer 0 Win Type - Total 0 Types 0/0/0/0/0/0/0/0/0 Lore% 16 Gallery% 22 Achievement% 20 Wizard Run 0 Options --------- Layout 1 ASCII 0 Keyboard 0 Movement Numpad Keybinds 0 Fullscreen 1 Font 24/Terminus Map View 50x35 Zoom Use 0% Tactical HUD 1 Map Filters NONE Filters NONE Steam 1 RUN: 8682cbf3-befe-438e-b11f-a520d6f2f7cd